[Event "Kragero Resort Chess B 2019"]
[Site "Kragero"]
[Date "2019.02.24"]
[Round "9.6"]
[White "Bernstein, Jonas August"]
[Black "Khoo-Thwe, Louis"]
[Result "1-0"]
[ECO "E11"]
[WhiteElo "1744"]
[BlackElo "1673"]
[Annotator "NA RC"]
[PlyCount "115"]
[EventDate "2019.02.20"]
[EventType "swiss"]
[EventCountry "NOR"]
[SourceTitle "playchess.com"]
[Source "ChessBase"]
[SourceQuality "1"]
[TimeControl "5400+30"]

1. d4 {[%emt 0:03:10]} Nf6 {[%emt 0:00:00]} 2. c4 {[%emt 0:00:41]} e6 {[%emt 0:00:00]} 3. Nf3 {[%emt 0:00:09]} Bb4+ {[%emt 0:00:08]} 4. Bd2 {[%emt 0:00:30]} Bxd2+ {[%emt 0:00:13]} 5. Qxd2 {[%emt 0:00:30]} d5 {[%emt 0:00:17]} 6. Nc3 {[%emt 0:00:19]} O-O {[%emt 0:00:33]} 7. e3 {[%emt 0:00:08]} Nbd7 {[%emt 0:02:21]} 8. Rc1 {[%emt 0:01:16]} c6 {[%emt 0:00:15]} 9. Bd3 {[%emt 0:00:28]} Re8 {[%emt 0:01:39]} 10. O-O {[%emt 0:01:06]} dxc4 {[%emt 0:02:05]} 11. Bxc4 {[%emt 0:00:15]} e5 {[%emt 0:00:16]} 12. Ng5 {[%emt 0:12:00]} Rf8 {[%emt 0:00:12]} 13. dxe5 {[%emt 0:01:06]} Nxe5 {[%emt 0:00:19]} 14. Qxd8 {[%emt 0:01:14]} Rxd8 {[%emt 0:00:08]} 15. Bb3 {[%emt 0:03:03]} Rf8 {[%emt 0:02:33]} 16. Rfd1 {[%emt 0:04:45]} h6 {[%emt 0:03:48]} 17. Nge4 {[%emt 0:01:05]} Nxe4 {[%emt 0:01:16]} 18. Nxe4 {[%emt 0:00:03]} Rb8 {[%emt 0:12:34]} 19. Nd6 {[%emt 0:10:09]} Ng4 {[%emt 0:04:47]} 20. Nxf7 {[%emt 0:02:16]} Kh7 {[%emt 0:01:32]} 21. h3 {[%emt 0:03:00]} Nf6 {[%emt 0:00:18]} 22. Ne5 {[%emt 0:07:42]} Bf5 {[%emt 0:01:08]} 23. Rd4 {[%emt 0:05:29]} Rbd8 {[%emt 0:02:16]} 24. Rcd1 {[%emt 0:00:58]} Rxd4 {[%emt 0:01:22]} 25. Rxd4 {[%emt 0:01:23]} Re8 {[%emt 0:00:22]} 26. Nc4 {[%emt 0:04:18]} Re7 {[%emt 0:06:05]} 27. Rd8 {[%emt 0:02:08]} Rd7 {[%emt 0:01:15]} 28. Rxd7 {[%emt 0:02:16]} Bxd7 {[%emt 0:00:51]} 29. Ne5 {[%emt 0:02:31]} Bf5 {[%emt 0:00:32]} 30. Nf7 {[%emt 0:01:27]} b6 {[%emt 0:01:24]} 31. Nd6 {[%emt 0:02:45]} Bd7 {[%emt 0:00:59]} 32. e4 {[%emt 0:03:16]} Ne8 {[%emt 0:01:22]} 33. Nxe8 {[%emt 0:01:11]} Bxe8 {[%emt 0:00:11]} 34. Be6 {[%emt 0:01:07]} g6 {[%emt 0:00:53]} 35. Kf1 {[%emt 0:00:52]} Kg7 {[%emt 0:00:18]} 36. Ke2 {[%emt 0:00:16]} Kf6 {[%emt 0:00:12]} 37. Bb3 {[%emt 0:00:43]} c5 {[%emt 0:00:20]} 38. Ke3 {[%emt 0:00:36]} g5 {[%emt 0:00:55]} 39. Bc4 {[%emt 0:03:02]} Bc6 {[%emt 0:01:09]} 40. g3 {[%emt 0:03:02]} Bd7 {[%emt 0:00:40]} 41. Bf1 {[%emt 0:00:40]} Be6 {[%emt 0:00:53]} 42. b3 {[%emt 0:00:30]} a5 {[%emt 0:02:01]} 43. f4 {[%emt 0:00:44]} gxf4+ {[%emt 0:00:18]} 44. Kxf4 {[%emt 0:00:34]} a4 {[%emt 0:00:23]} 45. Bc4 {[%emt 0:00:35]} axb3 {[%emt 0:00:53]} 46. axb3 {[%emt 0:00:54]} Bxh3 {[%emt 0:01:01]} 47. g4 {[%emt 0:00:36]} Bg2 {[%emt 0:00:53]} 48. e5+ {[%emt 0:02:19]} Kg6 {[%emt 0:01:25]} 49. Bd3+ {[%emt 0:01:02]} Kf7 {[%emt 0:00:11]} 50. Kf5 {[%emt 0:00:42]} Bd5 {[%emt 0:00:10]} 51. Bc4 {[%emt 0:01:46]} Bxc4 52. bxc4 {[%emt 0:00:00]} Ke7 {[%emt 0:01:22]} 53. e6 {[%emt 0:03:45]} b5 {[%emt 0:02:45]} 54. cxb5 {[%emt 0:00:07]} c4 {[%emt 0:00:06]} 55. b6 {[%emt 0:00:06]} c3 {[%emt 0:00:03]} 56. b7 {[%emt 0:00:04]} c2 {[%emt 0:00:08]} 57. b8=Q {[%emt 0:00:04]} c1=Q {[%emt 0:00:09]} 58. Qb7+ {[%emt 0:00:39]} 1-0

[Event "Kragero Resort Chess B 2019"]
[Site "Kragero"]
[Date "2019.02.24"]
[Round "9.7"]
[White "Fjellheim, Benjamin"]
[Black "Gronn, Embla Ekeland"]
[Result "1-0"]
[ECO "A06"]
[WhiteElo "1757"]
[BlackElo "1633"]
[Annotator "NA RC"]
[PlyCount "69"]
[EventDate "2019.02.20"]
[EventType "swiss"]
[EventCountry "NOR"]
[SourceTitle "playchess.com"]
[Source "ChessBase"]
[SourceQuality "1"]
[TimeControl "5400+30"]

1. Nf3 {[%emt 0:00:15]} d5 {[%emt 0:00:08]} 2. b3 {[%emt 0:00:10]} Bf5 {[%emt 0:02:21]} 3. Bb2 {[%emt 0:00:14]} e6 {[%emt 0:00:43]} 4. e3 {[%emt 0:00:10]} Nf6 {[%emt 0:00:40]} 5. Be2 {[%emt 0:00:43]} Be7 {[%emt 0:01:28]} 6. O-O {[%emt 0:00:11]} h6 {[%emt 0:01:22]} 7. d4 {[%emt 0:00:30]} O-O {[%emt 0:00:18]} 8. c4 {[%emt 0:00:06]} dxc4 {[%emt 0:10:55]} 9. Bxc4 {[%emt 0:01:42]} Nbd7 {[%emt 0:03:17]} 10. Nbd2 {[%emt 0:02:32]} c5 {[%emt 0:03:24]} 11. Rc1 {[%emt 0:01:45]} cxd4 {[%emt 0:02:20]} 12. Nxd4 {[%emt 0:00:48]} Bg4 {[%emt 0:05:21]} 13. Be2 {[%emt 0:02:21]} Bxe2 {[%emt 0:00:26]} 14. Qxe2 {[%emt 0:00:12]} Nb6 {[%emt 0:04:43]} 15. Rfd1 {[%emt 0:00:45]} Nfd5 {[%emt 0:04:58]} 16. Nc4 {[%emt 0:21:34]} Qe8 {[%emt 0:08:03]} 17. e4 {[%emt 0:23:12]} Nf4 {[%emt 0:09:13]} 18. Qg4 {[%emt 0:03:44]} Nxc4 {[%emt 0:07:00]} 19. Rxc4 {[%emt 0:04:50]} Ng6 {[%emt 0:02:02]} 20. Rc7 {[%emt 0:08:53]} Bf6 {[%emt 0:14:15]} 21. Ba3 {[%emt 0:05:12]} Qb8 {[%emt 0:07:14]} 22. Nxe6 {[%emt 0:09:37]} Ne5 {[%emt 0:06:51]} 23. Qf5 {[%emt 0:10:13]} fxe6 {[%emt 0:00:35]} 24. Qxe6+ {[%emt 0:00:05]} Rf7 {[%emt 0:00:21]} 25. Rdc1 {[%emt 0:01:35]} Qd8 {[%emt 0:03:53]} 26. Rc8 {[%emt 0:00:15]} Kh7 {[%emt 0:00:35]} 27. Rxd8 {[%emt 0:00:15]} Rxd8 {[%emt 0:00:06]} 28. f4 {[%emt 0:01:18]} Rfd7 {[%emt 0:00:50]} 29. fxe5 {[%emt 0:00:16]} Bg5 {[%emt 0:00:21]} 30. Re1 {[%emt 0:00:50]} Rd2 {[%emt 0:00:31]} 31. Be7 {[%emt 0:00:35]} Bxe7 {[%emt 0:00:24]} 32. Qxe7 {[%emt 0:00:02]} R8d7 {[%emt 0:00:17]} 33. Qe6 {[%emt 0:00:08]} R7d4 {[%emt 0:00:33]} 34. Qf5+ {[%emt 0:00:21]} Kh8 {[%emt 0:00:12]} 35. e6 {[%emt 0:00:14]} 1-0